bitfinex/quotes_ETHUSD_20250415
["timestamp","ask_amount","ask_price","bid_price","bid_amount"]
[1744740426189,6.19437,1614.4,1614.1,0.05]
[1744740426737,6.19443,1614.4,1614.1,0.05]
[1744740427034,6.1947,1614.3,1614.1,0.05]
[1744740427188,6.19443,1614.4,1614.1,0.05]
[1744740427390,6.98213,1614.4,1614.1,0.05]
[1744740427600,7.742285,1614.4,1614.1,6.24532]
[1744740428235,11.90264,1614.3,1614.1,0.05]
[1744740428529,6.19501,1614.2,1614.1,0.05]
[1744740429401,7.53613147,1614.2,1614.1,0.05]
[1744740429806,10.53613147,1614.2,1614.1,0.05]
[1744740430039,6.19655,1613.8,1613.7,0.55]
[1744740430208,13.29107147,1613.8,1613.7,0.55]
[1744740430598,12.72035,1613.8,1613.7,0.55]
[1744740430996,12.72035,1613.8,1613.6,0.55]
[1744740431196,15.50229781,1613.7,1613.6,0.55]
[1744740431429,16.06998164,1613.7,1613.6,0.55]
[1744740432338,11.83164883,1613.7,1613.6,0.55]
[1744740432634,11.263965,1613.7,1613.6,0.55]
[1744740433036,2.067035,1613.7,1613.6,0.55]
[1744740433240,8.263965,1613.7,1613.6,0.55]
[1744740434836,11.263965,1613.7,1613.6,0.55]
[1744740435195,3.0,1613.5,1613.1,0.05]
[1744740435436,6.19853,1613.3,1613.1,0.05]
[1744740435735,7.389643,1613.3,1613.1,0.05]
[1744740436255,1.191053,1613.3,1613.1,0.05]
[1744740436403,11.91047,1613.4,1613.1,6.24916]
[1744740436939,5.712,1613.4,1613.1,6.79922]
[1744740437100,11.91029,1613.4,1613.1,0.6]
[1744740437433,6.19863,1613.3,1613.1,0.05]
[1744740437812,11.91011,1613.4,1613.1,0.05]
[1744740438010,13.720893,1613.4,1613.1,0.05]
[1744740438410,13.720893,1613.4,1613.1,6.79913]
[1744740438640,11.91011,1613.4,1613.1,6.79913]
[1744740438838,6.19885,1613.2,1613.1,0.05]
[1744740443550,6.96495,1613.2,1613.1,0.05]
[1744740447544,16.07845,1613.2,1613.1,1e-05]
[1744740447706,27.07785528,1613.2,1613.1,1e-05]
[1744740448036,20.57185528,1613.2,1613.1,1e-05]
[1744740448818,27.07785528,1613.2,1613.1,1e-05]
[1744740449049,20.57185528,1613.2,1613.1,1e-05]
[1744740449229,14.47185528,1613.2,1613.1,1e-05]
[1744740452120,15.03786028,1613.2,1613.1,1e-05]
[1744740452401,21.13786028,1613.2,1613.1,1e-05]
[1744740452601,27.64386028,1613.2,1613.1,1e-05]
[1744740454035,9.96109,1612.8,1612.7,0.0361023]
[1744740454208,17.966237,1612.8,1612.7,0.0361023]
[1744740454547,28.87057481,1612.8,1612.7,2.3e-06]
[1744740454753,6.20078,1612.7,1612.6,4.1e-06]
[1744740455047,6.2027,1612.2,1612.1,0.05]
[1744740455232,6.20116,1612.6,1612.1,0.05]
[1744740455233,14.536647,1612.8,1612.4,6.20173]
[1744740455412,2.236147,1612.8,1612.5,6.20133]
[1744740455607,11.97005,1612.9,1612.6,7.53496]
[1744740455608,5.77,1612.9,1612.6,7.53496]
[1744740455834,5.77,1612.9,1612.7,6.20064]
[1744740456342,6.1,1613.2,1612.6,0.7838]
[1744740456343,11.87,1613.2,1612.6,0.7838]
[1744740456653,12.40037,1612.9,1612.6,6.98485]
[1744740456951,12.40122,1612.8,1612.6,0.7838]
[1744740457244,6.19988,1613.0,1612.6,6.98477]
[1744740457443,6.20003,1612.9,1612.6,6.98477]
[1744740457646,0.57096086,1612.9,1612.7,6.75044]
[1744740457947,0.57096086,1612.9,1612.7,6.75067]
[1744740458175,5.77,1613.2,1612.6,0.10922156]
[1744740458302,6.77624,1613.1,1612.6,0.10922156]
[1744740458503,6.20056,1612.8,1612.6,0.10922156]
[1744740458707,0.5714434,1612.7,1612.6,0.10922156]
[1744740458910,6.7722234,1612.7,1612.3,6.20215]
[1744740459108,12.9733734,1612.7,1612.3,12.40432]
[1744740459347,0.5714434,1612.6,1612.3,12.40432]
[1744740459721,0.5714434,1612.6,1612.4,6.20193]
[1744740459907,0.5714434,1612.6,1612.4,12.40375]
[1744740460106,0.5714434,1612.6,1612.5,6.75155]
[1744740460518,0.5714434,1612.6,1612.5,7.58385]
[1744740460722,0.5714434,1612.8,1612.5,15.16396]
[1744740460923,0.5714434,1612.8,1612.6,6.20115]
[1744740461124,0.5714434,1612.8,1612.6,6.20103]
[1744740461319,0.5714434,1612.8,1612.7,6.75078]
[1744740461525,0.5714434,1612.9,1612.7,6.75078]
[1744740461750,12.54636,1613.1,1612.8,6.20039]
[1744740461959,12.54636,1613.1,1612.8,6.97868]
[1744740462117,12.54636,1613.1,1612.8,13.17896]
[1744740462317,0.57225845,1613.0,1612.8,13.17896]
[1744740462718,5.77,1613.1,1612.8,0.7784]
[1744740462909,18.16874,1613.1,1612.8,6.97877]
[1744740463114,11.96932,1613.1,1612.8,6.97863]
[1744740463355,54.13,1613.4,1612.9,6.74982]
[1744740463644,66.52671,1613.4,1613.1,0.7745]
[1744740463955,6.19746,1613.6,1613.3,12.39694]
[1744740464113,6.19746,1613.6,1613.3,6.19847]
[1744740464314,13.238975,1613.7,1613.1,0.7745]
[1744740464315,16.238995,1613.7,1613.1,0.7745]
[1744740464547,6.19877,1613.3,1613.1,0.7745]
[1744740465483,6.19781,1613.5,1613.1,6.9736]
[1744740465675,6.19748,1613.6,1613.3,6.19822]
[1744740465851,16.238995,1613.7,1613.3,6.19822]
[1744740465852,19.436095,1613.7,1613.3,12.39658]
[1744740466477,6.19739,1613.6,1613.3,6.19822]
[1744740466654,12.395,1613.6,1613.3,6.19822]
[1744740466856,12.39486,1613.6,1613.3,6.19822]
[1744740467154,6.19781,1613.5,1613.2,0.55]
[1744740467355,6.19821,1613.4,1613.2,0.55]
[1744740467682,1.9436895,1613.6,1613.2,6.74878]
[1744740467683,14.3385495,1613.6,1613.2,6.74878]
[1744740467887,8.1410595,1613.6,1613.3,6.19845]
[1744740468447,8.1410595,1613.6,1613.3,12.39681]
[1744740468652,7.01183595,1613.5,1613.1,6.97362]
[1744740468858,6.1982,1613.4,1613.1,6.97362]
[1744740469043,6.1982,1613.4,1613.1,6.9737]
[1744740469245,7.01191595,1613.5,1613.1,13.1729]
[1744740469445,13.20986595,1613.5,1613.1,13.1729]
[1744740469668,7.51910659,1613.4,1613.1,6.9737]
[1744740469985,6.19885,1613.2,1613.1,0.7745]
[1744740470275,6.19858,1613.3,1613.1,0.7745]
[1744740471081,13.71740659,1613.4,1613.1,0.7745]
[1744740471382,6.1988,1613.3,1613.1,0.7745]
[1744740471679,0.61988,1613.2,1613.1,0.7745]
[1744740472387,6.81873,1613.2,1613.1,0.7745]
[1744740472745,0.61988,1613.2,1613.1,0.7745]
[1744740472985,6.19863,1613.3,1613.1,0.7745]
[1744740473158,6.19817,1613.4,1613.1,6.97367]
[1744740473355,6.19817,1613.4,1613.1,13.1728]
[1744740473586,6.19817,1613.4,1613.1,6.97363]
[1744740473786,6.19817,1613.4,1613.1,6.9736]
[1744740474169,6.19817,1613.4,1613.1,13.17271]
[1744740474375,6.19777,1613.5,1613.2,6.19866]
[1744740474575,0.619777,1613.4,1613.1,13.17276]
[1744740475087,6.817907,1613.4,1613.1,13.17275]
[1744740475273,0.619777,1613.4,1613.1,13.17275]
[1744740475658,0.619777,1613.4,1613.1,13.17276]
[1744740475659,6.817907,1613.4,1613.1,13.17276]
[1744740475867,0.619777,1613.4,1613.1,13.17276]
[1744740476091,5.769,1613.7,1613.4,6.19775]
[1744740476386,4.10593998,1613.8,1613.6,6.19717]
[1744740476589,4.10593998,1613.8,1613.7,0.7583]
[1744740476777,4.10593998,1613.8,1613.7,7.50523]
[1744740477454,4.10593998,1613.8,1613.7,1.3083]
[1744740477676,4.10593998,1613.8,1613.7,8.255777]
[1744740478894,4.10593998,1613.8,1613.7,1.3083]
[1744740479251,4.10593998,1613.8,1613.7,7.50523]
[1744740480129,11.13339998,1614.2,1613.9,6.19605]
[1744740480264,4.10593998,1614.2,1614.1,6.7454]
[1744740480979,4.10593998,1614.2,1614.1,0.55]
[1744740481178,6.19559,1614.1,1613.9,0.8239]
[1744740481383,4.51653398,1614.2,1613.9,0.8239]
[1744740481590,4.10593998,1614.2,1614.0,6.19575]
[1744740482368,4.10593998,1614.2,1614.0,0.55]
[1744740482672,6.19542,1614.1,1613.9,0.8239]
[1744740482892,6.19591,1614.0,1613.8,0.55]
[1744740483086,12.39109,1614.1,1613.8,0.55]
[1744740483401,7.434929,1614.0,1613.8,0.55]
[1744740483576,1.239109,1614.0,1613.7,0.8216]
[1744740483898,6.19585,1614.0,1613.7,7.01852]
[1744740484103,6.19649,1613.9,1613.7,0.8216]
[1744740484292,6.1971,1613.7,1613.5,0.8162]
[1744740484497,6.19666,1613.8,1613.5,0.8162]
[1744740484686,12.39344,1613.8,1613.5,0.8162]
[1744740484990,12.39418,1613.7,1613.5,0.8162]
[1744740485194,7.435944,1613.8,1613.5,7.01389]
[1744740485504,6.19703,1613.7,1613.5,0.8162]
[1744740486507,6.19774,1613.5,1613.3,0.8026]
[1744740486706,6.19809,1613.4,1613.1,7.00173]
[1744740486908,6.19809,1613.4,1613.2,0.55]
[1744740487119,6.19885,1613.2,1612.9,0.817]
[1744740487579,12.39792,1613.2,1612.9,7.017]
[1744740487920,7.755483,1613.4,1612.7,3.0]
[1744740487921,6.19962,1613.0,1612.7,6.20066]
[1744740488500,6.19962,1613.0,1612.8,0.55]
[1744740488701,12.39942,1613.0,1612.7,6.20063]
[1744740488881,12.39942,1613.0,1612.6,7.00644]
[1744740489077,6.20002,1612.9,1612.6,7.00644]
[1744740489311,12.39956,1613.0,1612.6,13.20749]
[1744740489491,6.199,1613.2,1612.7,0.06200743]
[1744740489819,6.199,1613.2,1612.9,6.19982]
[1744740490021,6.19955,1613.1,1612.7,12.40139]
[1744740490182,12.39891,1613.1,1612.8,6.75039]
[1744740490519,6.19894,1613.2,1612.8,6.75005]
[1744740490738,6.19935,1613.1,1612.8,6.75005]
[1744740491117,12.39876,1613.1,1612.8,6.75005]
[1744740491322,6.818754,1613.2,1612.9,6.19994]
[1744740491483,6.818754,1613.2,1612.8,6.7503]
[1744740491484,12.39788,1613.2,1612.8,12.9506]
[1744740491688,6.19928,1613.1,1612.8,12.95053]
[1744740491991,12.3988,1613.1,1612.8,0.55]
[1744740492188,6.19976,1613.0,1612.7,0.55]
[1744740492402,6.20019,1612.9,1612.6,7.0064]
[1744740492613,6.19929,1613.1,1612.7,6.2006]
[1744740492789,6.19929,1613.1,1612.8,12.40039]
[1744740493122,6.19929,1613.1,1612.8,6.20013]
[1744740493328,13.638543,1613.1,1612.7,12.40146]
[1744740493527,7.439113,1613.1,1612.8,6.20036]
[1744740493725,1.239823,1613.1,1612.9,6.19967]
[1744740493896,6.19911,1613.2,1612.8,12.4007]
[1744740494221,6.19946,1613.1,1612.8,6.20035]
[1744740494540,6.19946,1613.1,1612.8,6.75035]
[1744740495032,6.19946,1613.1,1612.8,0.55]
[1744740495033,12.39901,1613.1,1612.8,0.55]
[1744740495335,6.19946,1613.1,1612.8,6.75038]
[1744740495502,6.19888,1613.2,1612.8,12.9506]
[1744740495704,6.19828,1613.4,1613.1,6.19907]
[1744740496122,6.19827,1613.4,1613.1,12.39814]
[1744740496319,12.39654,1613.4,1613.1,6.19907]
[1744740496506,6.19868,1613.3,1613.1,0.55]
[1744740496853,6.19817,1613.4,1613.1,0.55]
[1744740496995,11.9498,1613.5,1613.1,0.55]
[1744740497195,12.3965,1613.4,1613.1,6.74912]
[1744740497633,6.19821,1613.4,1613.1,6.74911]
[1744740497833,19.41831,1613.5,1613.2,6.19879]
[1744740498019,7.02261,1613.5,1613.0,6.98688]
[1744740498332,7.02261,1613.5,1613.1,0.55]
[1744740498333,12.39678,1613.4,1613.1,0.55]
[1744740498723,14.338719,1613.4,1613.1,0.55]
[1744740499035,13.22041,1613.5,1613.1,6.74894]
[1744740499231,13.22041,1613.5,1613.2,6.19874]
[1744740499533,3.0,1613.7,1613.4,6.19809]
[1744740499534,6.19705,1613.7,1613.4,6.19809]
[1744740499694,11.94884,1613.8,1613.4,7.02276]
[1744740500201,6.19694,1613.7,1613.4,13.22071]
[1744740500507,6.19694,1613.7,1613.4,0.8248]
[1744740500708,12.39513,1613.6,1613.4,0.8248]
[1744740501039,6.19781,1613.5,1613.3,0.55]
[1744740501218,13.634543,1613.6,1613.3,0.55]
[1744740501426,18.1455,1613.8,1613.4,6.19798]
[1744740501621,6.19697,1613.7,1613.4,6.19798]
[1744740501813,12.39413,1613.7,1613.3,12.94676]
[1744740502213,12.39409,1613.7,1613.4,6.19805]
[1744740503040,6.19732,1613.6,1613.3,12.94678]
[1744740503205,7.436749,1613.6,1613.3,6.74844]
[1744740503410,7.436749,1613.6,1613.3,0.55]
[1744740503748,6.19774,1613.5,1613.3,0.55]
[1744740503918,12.39569,1613.5,1613.3,0.55]
[1744740504114,6.19822,1613.4,1613.2,0.7598]
[1744740504839,1.239429,1613.6,1613.4,6.19797]
[1744740505031,12.39429,1613.7,1613.4,6.19797]
[1744740505446,6.5471,1613.8,1613.3,6.74834]
[1744740505447,6.1975,1613.6,1613.3,6.74834]
[1744740505766,6.19809,1613.4,1613.2,0.7598]
[1744740506111,12.3959,1613.5,1613.2,0.7598]
[1744740506309,6.19702,1613.7,1613.4,6.19778]
[1744740506538,13.668512,1613.7,1613.4,6.19778]
[1744740506734,1.274412,1613.7,1613.4,6.19803]
[1744740506935,6.19698,1613.7,1613.3,6.74836]
[1744740507133,18.94045,1613.8,1613.5,6.19752]
[1744740507445,18.94045,1613.8,1613.4,6.19796]
[1744740507446,6.19706,1613.7,1613.4,6.19796]
[1744740507842,6.19663,1613.8,1613.5,6.98528]
[1744740508144,6.19696,1613.7,1613.5,0.7877]
[1744740508344,6.19732,1613.6,1613.5,1.3377]
[1744740508544,12.39417,1613.7,1613.5,0.7877]
[1744740508719,12.39411,1613.7,1613.5,0.7877]
[1744740508918,12.39409,1613.7,1613.5,0.7877]
[1744740509138,7.4986053,1613.7,1613.3,1.3377]
[1744740509345,12.39523,1613.6,1613.3,0.7877]
[1744740509758,6.19782,1613.5,1613.1,6.99472]
[1744740510059,8.2812853,1613.7,1613.4,6.19797]
[1744740510244,14.4784953,1613.7,1613.4,6.19797]
[1744740510941,14.4784953,1613.7,1613.3,6.19835]
[1744740510942,7.64526953,1613.6,1613.3,6.19835]
[1744740511142,6.19784,1613.5,1613.2,12.94753]
[1744740511659,1.44784953,1613.6,1613.1,6.99475]
[1744740511821,6.19804,1613.5,1613.2,6.19879]
[1744740512161,12.39501,1613.6,1613.3,6.74835]
[1744740512859,6.19773,1613.5,1613.3,0.55]
[1744740513721,6.97975,1613.7,1613.3,6.74836]
[1744740513921,6.816243,1613.8,1613.3,0.55]
[1744740514259,6.19694,1613.7,1613.4,7.02497]
[1744740514664,6.19694,1613.7,1613.4,13.22296]
[1744740514831,12.39404,1613.7,1613.4,7.02497]
[1744740515025,6.19743,1613.6,1613.4,0.827]
[1744740515460,6.197,1613.7,1613.4,7.02508]
[1744740515664,6.816373,1613.8,1613.4,7.02497]
[1744740515870,6.19694,1613.7,1613.4,13.22294]
[1744740516369,12.39409,1613.7,1613.4,7.02497]
[1744740516871,6.19694,1613.7,1613.4,13.22294]
[1744740517079,6.19694,1613.7,1613.4,7.02497]
[1744740517366,7.4982613,1613.7,1613.4,7.02497]
[1744740517569,7.4982613,1613.7,1613.4,0.827]
[1744740517769,7.4982613,1613.7,1613.4,7.02506]
[1744740517975,6.19694,1613.7,1613.4,7.02506]
[1744740518277,12.39405,1613.7,1613.4,7.02506]
[1744740518471,12.39406,1613.7,1613.4,7.02506]
[1744740519067,6.19735,1613.6,1613.4,0.827]
[1744740519267,12.39481,1613.6,1613.4,0.827]
[1744740519466,6.19735,1613.6,1613.4,0.827]
[1744740519874,12.39415,1613.7,1613.4,7.02508]
[1744740520168,6.19705,1613.7,1613.4,7.02498]
[1744740520467,6.19744,1613.6,1613.4,0.827]
[1744740520968,6.19697,1613.7,1613.4,0.827]
[1744740521271,1.909906,1616.4,1613.4,0.827]
[1744740521272,49.05391044,1614.3,1613.4,0.7696]
[1744740521471,7.02498,1614.5,1613.9,0.55]
[1744740521668,6.19437,1614.4,1614.1,0.55]
[1744740521973,6.19437,1614.4,1614.1,12.39054]
[1744740522155,7.02497,1614.5,1614.2,6.19485]
[1744740522361,8.91752,1614.5,1614.2,6.19485]
[1744740522565,6.19435,1614.4,1614.1,13.16019]
[1744740522869,14.62452,1614.5,1614.2,6.19493]
[1744740523081,6.19497,1614.3,1613.9,7.02001]
[1744740523244,6.19497,1614.3,1613.7,0.8239]
[1744740523245,6.19627,1613.9,1613.7,0.8239]
[1744740523448,6.19627,1613.9,1613.6,12.3944]
[1744740523679,11.90248,1614.1,1613.7,6.19685]
[1744740523974,6.19595,1614.0,1613.7,6.19681]
[1744740524342,19.363568,1614.1,1613.8,6.19649]
[1744740524543,6.1958,1614.0,1613.7,6.19681]
[1744740524740,13.167888,1614.1,1613.8,6.19653]
[1744740524942,6.972418,1614.1,1613.9,6.19615]
[1744740525150,5.707,1614.1,1614.0,6.19578]
[1744740525373,12.38967,1614.3,1614.0,6.19578]
[1744740525978,6.19504,1614.2,1613.9,6.94953]
[1744740526277,6.19468,1614.3,1613.9,6.94953]
[1744740526579,18.89323,1614.4,1614.1,6.19529]
[1744740526997,6.19468,1614.3,1614.0,6.74568]
[1744740527280,12.38961,1614.3,1614.0,6.74568]
[1744740527482,12.38961,1614.3,1614.0,0.55]
[1744740527778,12.69887,1614.4,1614.1,6.19535]
[1744740528144,8.451002,1614.4,1614.0,0.55]
[1744740528348,6.19361,1614.6,1614.4,0.55]
[1744740528647,6.9675,1614.7,1614.4,0.55]
[1744740528851,0.7743,1614.7,1614.4,6.74418]
[1744740529044,0.7743,1614.7,1614.5,6.19375]
[1744740529246,18.09175,1614.8,1614.5,6.19375]
[1744740529548,11.89871,1614.8,1614.5,6.19375]
[1744740529949,5.706,1614.8,1614.5,6.19373]
[1744740530148,11.89875,1614.8,1614.5,6.19373]
[1744740530465,5.706,1614.8,1614.5,6.19373]
[1744740531073,11.89883,1614.8,1614.5,6.19373]
[1744740531882,18.09169,1614.8,1614.5,6.19373]
[1744740532286,11.89883,1614.8,1614.5,6.19373]
[1744740532446,5.706,1614.8,1614.5,6.19373]
[1744740532651,11.89885,1614.8,1614.5,6.19373]
[1744740533085,18.09171,1614.8,1614.5,6.19373]
[1744740533388,19.982621,1614.8,1614.4,13.7368]
[1744740533685,6.19364,1614.6,1614.3,6.19448]
[1744740533869,6.19317,1614.7,1614.4,6.19414]
[1744740534078,12.38647,1614.7,1614.4,6.19414]
[1744740534988,12.38649,1614.7,1614.4,6.19424]
[1744740535182,6.19317,1614.7,1614.4,12.38839]
[1744740535487,6.19317,1614.7,1614.4,6.19415]
[1744740535811,12.38656,1614.7,1614.4,6.19415]
[1744740535990,14.3849071,1614.7,1614.4,6.19415]
[1744740536469,1.9983471,1614.7,1614.5,6.19379]
[1744740536671,5.706,1614.8,1614.6,6.19321]
[1744740536984,5.706,1614.8,1614.5,6.19377]
[1744740536985,11.89888,1614.8,1614.5,6.19377]
[1744740537283,6.19315,1614.7,1614.5,0.55]
[1744740537656,6.19315,1614.7,1614.4,6.19412]
[1744740537853,6.19315,1614.7,1614.4,12.38826]
[1744740538088,6.19315,1614.7,1614.4,6.19412]
[1744740539083,6.19315,1614.7,1614.4,12.38823]
[1744740539383,11.89882,1614.8,1614.5,6.19379]
[1744740539594,19.982633,1614.8,1614.4,12.38822]
[1744740539799,5.706,1614.8,1614.5,0.55]
[1744740539994,5.706,1614.8,1614.6,6.19337]
[1744740540195,5.706,1614.8,1614.6,12.38675]
[1744740540396,5.706,1614.8,1614.6,6.19337]
[1744740540598,5.706,1614.8,1614.6,6.19334]
[1744740540924,0.8247,1615.3,1614.7,0.55]
[1744740541214,7.01551,1615.3,1615.0,6.19162]
[1744740541370,13.20653,1615.3,1614.9,12.38454]
[1744740541781,6.19167,1615.1,1614.9,0.55]
[1744740542082,0.8247,1615.3,1614.9,6.74222]
[1744740542401,7.67288,1615.3,1615.0,12.38361]
[1744740542604,6.8479,1615.3,1614.9,0.55]
[1744740542779,0.65707,1615.3,1615.1,6.19142]
[1744740542983,0.65707,1615.3,1615.2,0.55]
[1744740543296,0.05,1615.4,1615.3,6.1908]
[1744740543492,0.05,1615.4,1615.3,6.7408]
[1744740544405,0.05,1615.4,1615.3,6.80270054]
[1744740544793,0.05,1615.4,1615.3,10.39828151]
[1744740544997,0.05,1615.4,1615.3,12.75864966]
[1744740545197,0.05,1615.4,1615.3,12.69674913]
[1744740545910,0.05,1615.4,1615.3,13.49414913]
[1744740546674,0.05,1615.4,1615.3,16.49414913]
[1744740547184,0.05,1615.4,1615.3,12.89856815]
[1744740551177,6.24057,1615.4,1615.0,6.19191]
[1744740551378,6.24057,1615.4,1615.1,6.19142]
[1744740551578,6.24057,1615.4,1615.2,0.55]
[1744740551775,0.05,1615.4,1615.1,12.38284]
[1744740551978,0.05,1615.4,1615.1,3.0]
[1744740552210,0.05,1615.4,1615.3,6.1908]
[1744740552709,0.05,1615.4,1615.3,6.80270914]
[1744740553031,0.05,1615.4,1615.3,6.7408]
[1744740556892,0.05,1615.4,1615.3,6.8027019]
[1744740557293,0.05,1615.4,1615.3,6.7408]
[1744740558825,0.05,1615.4,1615.3,11.76977272]
[1744740558989,0.05,1615.4,1615.3,11.70786998]
[1744740559688,0.05,1615.4,1615.3,11.76976812]
[1744740559885,0.05,1615.4,1615.3,15.57346812]
[1744740560106,0.05,1615.4,1615.3,15.51156998]
[1744740561838,0.05,1616.4,1615.7,6.18926]
[1744740561982,0.05,1616.4,1616.1,10.33325098]
[1744740562284,0.8663,1616.4,1616.1,6.73762]
[1744740562489,0.8663,1616.4,1616.2,6.1873]
[1744740562724,0.8663,1616.4,1616.2,6.18722]
[1744740562929,0.8663,1616.4,1616.3,6.18697]
[1744740563126,0.05,1616.4,1616.3,6.18697]
[1744740563435,0.05,1616.4,1616.3,6.73697]
[1744740564726,0.05,1616.4,1616.3,0.55]
[1744740565412,0.849,1616.4,1616.0,3.0]
[1744740565589,0.05,1616.4,1616.1,0.55]
[1744740565930,0.799,1616.2,1615.9,6.18839]
[1744740566089,1.497617,1616.2,1615.9,12.37677]
[1744740566291,1.497617,1616.2,1616.1,6.18773]
[1744740566490,0.799,1616.2,1616.1,6.18773]
[1744740567326,7.00226,1616.4,1616.1,12.92546]
[1744740567493,7.00223,1616.4,1616.1,6.73773]
[1744740567693,6.18698,1616.3,1616.1,0.55]
[1744740568231,7.00223,1616.4,1616.1,6.7377]
[1744740568594,14.458403,1616.4,1616.1,6.7377]
[1744740568791,6.18758,1616.2,1615.8,6.18887]
[1744740569000,6.18786,1616.1,1615.8,6.18876]
[1744740570235,12.37494,1616.2,1615.8,6.18876]
[1744740570437,12.37494,1616.2,1615.8,12.37754]
[1744740570637,13.693454,1616.2,1615.8,12.37754]
[1744740571138,7.505944,1616.2,1615.9,6.18841]
[1744740571438,13.693644,1616.2,1615.8,12.37754]
[1744740572627,13.1879,1616.1,1615.8,6.18876]
[1744740572834,6.99995,1616.1,1615.8,6.18876]
[1744740573041,8.4505424,1616.1,1615.8,6.18876]
[1744740573336,0.8121,1616.1,1615.8,0.55]
[1744740573542,0.8091,1616.3,1616.0,4.14558098]
[1744740573699,0.05,1616.4,1616.2,12.37457]
[1744740573897,0.05,1616.4,1616.2,6.18722]
[1744740574195,0.05,1616.4,1616.2,12.37444]
[1744740574396,0.05,1616.4,1616.2,6.18722]
[1744740574611,0.05,1616.4,1616.2,12.37444]
[1744740574908,0.05,1616.4,1616.2,6.18722]
[1744740575940,0.05,1616.4,1616.3,0.55]
[1744740576248,0.05,1616.4,1616.2,0.673722]
[1744740576249,7.02121,1616.4,1616.2,0.673722]
[1744740576409,7.02121,1616.4,1616.2,0.55]
[1744740576918,0.05,1616.4,1616.2,12.92456]
[1744740577344,0.05,1616.4,1616.2,12.92446]
[1744740577770,0.05,1616.4,1616.2,0.55]
[1744740577958,6.23664,1616.4,1616.2,0.55]
[1744740578467,13.665684,1616.4,1616.2,0.55]
[1744740578768,7.478924,1616.4,1616.2,0.55]
[1744740578952,6.23664,1616.4,1616.2,0.55]
[1744740579159,7.00187,1616.3,1616.0,6.18799]
[1744740579361,7.00187,1616.3,1616.0,12.37599]
[1744740579733,7.00187,1616.3,1616.1,0.55]
[1744740580073,22.32554177,1616.3,1616.1,0.55]
[1744740581044,6.18735,1616.2,1616.1,0.55]
[1744740581243,18.99478795,1616.3,1616.1,0.55]
[1744740581487,22.32554177,1616.3,1616.1,0.55]
[1744740581783,15.32367177,1616.3,1616.2,6.73735]
[1744740582275,15.32367177,1616.3,1616.2,0.55]
[1744740582459,15.32367177,1616.3,1616.2,6.73735]
[1744740582660,15.32367177,1616.3,1616.2,11.14383098]
[1744740582849,15.32367177,1616.3,1616.2,13.49572208]
[1744740583684,0.05,1616.4,1616.3,6.18697]
[1744740583976,0.05,1616.4,1616.3,6.24883138]
[1744740584332,0.05,1616.4,1616.3,6.18697]
[1744740586993,0.05,1616.4,1616.2,16.0872311]
[1744740587384,0.05,1616.4,1616.3,6.18697]
[1744740587894,0.05,1616.4,1616.3,0.55]
[1744740588097,0.05,1616.4,1616.3,8.40753219]
[1744740588958,0.05,1616.4,1616.3,12.20183219]
[1744740590079,0.8219,1617.2,1616.9,6.73467]
[1744740590306,58.56547518,1617.3,1617.2,6.18352]
[1744740590307,4.12516518,1617.3,1617.2,6.18352]
[1744740590489,4.12516518,1617.3,1617.2,6.73352]
[1744740591688,11.08210518,1617.3,1617.0,7.01612]
[1744740591886,11.08210518,1617.3,1617.1,0.55]
[1744740593009,4.89896518,1617.3,1616.9,0.673467]
[1744740593311,17.26557518,1617.3,1616.9,6.857997]
[1744740593509,6.18358,1617.2,1616.9,6.857997]
[1744740593711,17.26547518,1617.3,1617.0,7.4199297]
[1744740593918,4.89896518,1617.3,1616.9,0.673467]
[1744740594208,11.08220518,1617.3,1616.9,6.73466]
[1744740594418,11.08220518,1617.3,1616.9,12.91932]
[1744740594611,17.26555518,1617.3,1616.9,12.91932]
[1744740594975,6.18364,1617.2,1616.9,0.55]
[1744740595211,6.18364,1617.2,1616.9,6.7964803]
[1744740595416,4.12516518,1617.3,1617.2,0.55]
[1744740595977,4.12516518,1617.3,1617.2,6.73352]
[1744740596320,4.12516518,1617.3,1617.2,0.55]
[1744740596674,4.12516518,1617.3,1617.2,6.73352]
[1744740596877,4.12516518,1617.3,1617.2,8.10933112]
[1744740597693,0.4462718,1617.4,1617.3,6.18314]
[1744740598089,0.4462718,1617.4,1617.3,6.24496342]
[1744740600233,0.4462718,1617.4,1617.3,7.52264]
[1744740600389,0.59051225,1617.4,1617.3,7.52264]
[1744740600589,0.59051225,1617.4,1617.3,10.00871021]
[1744740600893,0.59051225,1617.4,1617.3,9.21921021]
[1744740601227,0.59051225,1617.4,1617.3,0.55]
[1744740602228,6.77330225,1617.4,1617.2,0.55]
[1744740602591,0.59051225,1617.4,1617.2,6.73341]
[1744740602989,6.77329225,1617.4,1617.2,0.55]
[1744740603226,0.59051225,1617.4,1617.2,12.91686]
[1744740603717,0.59051225,1617.4,1617.2,6.73343]
[1744740605620,6.18314,1617.3,1617.2,0.55]
[1744740605931,0.12791585,1617.3,1617.2,0.55]
[1744740606228,0.4462718,1617.4,1617.3,0.55]
[1744740606440,0.4462718,1617.4,1617.3,9.7975914]
[1744740607195,0.4462718,1617.4,1617.3,8.52634543]
[1744740607395,0.4462718,1617.4,1617.3,0.55]
[1744740608031,6.6290318,1617.4,1617.3,0.55]
[1744740608475,6.6290318,1617.4,1617.0,6.18424]